bitfinex/quotes_ETHUSD_20220220
["timestamp","ask_amount","ask_price","bid_price","bid_amount"]
[1645323887368,0.0030678,2741.4,2741.0,1.17457734]
[1645323887566,3.7,2741.5,2741.0,1.17457734]
[1645323887765,0.0030678,2741.4,2741.0,1.17457734]
[1645323887967,0.0030678,2741.4,2741.1,3.5]
[1645323888165,0.0030678,2741.4,2741.0,1.17457734]
[1645323888419,0.0030678,2741.4,2741.1,3.5]
[1645323888615,3.7,2741.5,2741.1,3.5]
[1645323889013,0.00306781,2741.3,2741.0,1.17457734]
[1645323889214,0.00306781,2741.3,2741.1,3.5]
[1645323889415,2.04937343,2741.5,2741.1,3.5]
[1645323890414,2.04937343,2741.5,2741.2,1.55025531]
[1645323891213,2.04937343,2741.5,2741.0,1.17457734]
[1645323891413,2.04937343,2741.5,2741.1,5.05032658]
[1645323891615,2.04937343,2741.5,2741.1,3.5]
[1645323892459,2.04937343,2741.5,2741.2,1.55031142]
[1645323893760,2.05285924,2741.5,2741.2,1.55031142]
[1645323894164,2.05285924,2741.5,2741.1,3.5]
[1645323894662,2.04937343,2741.5,2741.2,1.55030339]
[1645323894862,0.00348583,2741.4,2741.2,1.55030339]
[1645323895912,2.04937343,2741.5,2741.2,1.55030339]
[1645323896213,0.00348583,2741.4,2741.2,1.55030339]
[1645323897014,2.04937343,2741.5,2741.0,1.17457734]
[1645323897215,2.04937343,2741.5,2741.1,1.55034435]
[1645323897416,0.00348583,2741.4,2741.1,1.55034435]
[1645323897816,0.00348583,2741.4,2741.1,5.05034435]
[1645323898015,0.00348583,2741.4,2741.2,1.55034435]
[1645323898417,2.04937343,2741.5,2741.2,1.55034435]
[1645323898623,0.00348583,2741.4,2741.1,3.5]
[1645323898817,0.00348583,2741.4,2741.3,3.5]
[1645323899018,0.00348583,2741.4,2741.1,3.5]
[1645323899219,0.00348583,2741.4,2741.2,1.55027414]
[1645323900667,2.04937343,2741.5,2741.2,1.55027414]
[1645323901062,0.00348583,2741.4,2741.2,1.55027414]
[1645323901863,2.04937343,2741.5,2741.2,1.55027414]
[1645323902263,0.00348583,2741.4,2741.2,1.55027414]
[1645323902464,0.00348583,2741.4,2741.3,1.55027414]
[1645323902863,1.95285926,2741.5,2741.3,1.55027414]
[1645323903164,1.95285926,2741.5,2741.1,3.5]
[1645323903418,1.95285926,2741.5,2741.2,1.55024394]
[1645323905019,1.95285926,2741.5,2741.3,3.5]
[1645323905418,1.95285926,2741.5,2741.1,3.5]
[1645323905616,1.95285926,2741.5,2741.2,1.55018923]
[1645323905817,1.95285926,2741.5,2741.3,3.5]
[1645323906020,1.95634505,2741.5,2741.3,3.5]
[1645323906617,0.8902311,2741.5,2741.1,3.8]
[1645323906816,0.88674531,2741.5,2741.2,1.55021248]
[1645323907077,0.8902311,2741.5,2741.2,1.55021248]
[1645323907769,0.8902311,2741.5,2741.3,3.5]
[1645323907970,0.88674531,2741.5,2741.3,3.5]
[1645323908175,0.89023106,2741.5,2741.1,3.5]
[1645323908372,0.89023106,2741.5,2741.2,1.5501655]
[1645323908576,0.89023106,2741.5,2741.3,3.5]
[1645323908972,0.89023106,2741.5,2741.0,1.17457734]
[1645323909172,0.88674531,2741.5,2741.1,1.55018692]
[1645323909373,0.8902311,2741.5,2741.1,1.55018692]
[1645323909574,1.00611595,2742.1,2741.5,0.76329579]
[1645323910573,0.0021498,2741.9,2741.5,0.76329579]
[1645323910833,0.0021498,2741.9,2741.7,0.95914704]
[1645323911518,0.00611595,2742.2,2741.7,0.95914704]
[1645323911719,0.0021498,2741.9,2741.7,0.95914704]
[1645323912819,0.00611595,2742.2,2741.5,0.76329579]
[1645323913023,0.0021498,2741.9,2741.5,0.76329579]
[1645323913828,0.0021498,2741.9,2741.6,1.55014993]
[1645323914022,9.18873855,2742.6,2741.6,1.55014993]
[1645323914023,0.00611595,2742.5,2741.6,1.55014993]
[1645323914224,0.00323497,2741.8,2741.6,1.55014993]
[1645323914669,0.00323497,2741.8,2741.7,0.9686012]
[1645323914867,0.00323497,2741.8,2741.7,2.51875113]
[1645323915272,1.00611595,2742.5,2741.7,2.51875113]
[1645323915472,0.00329343,2741.9,2741.7,1.55014993]
[1645323915668,0.00329343,2741.9,2741.5,0.76329579]
[1645323915867,0.00329343,2741.9,2741.6,1.55020378]
[1645323916268,1.87198938,2742.3,2741.6,1.55020378]
[1645323916671,0.00329343,2741.9,2741.6,2.60429021]
[1645323916868,0.00329343,2741.9,2741.7,1.55020378]
[1645323917672,1.87198938,2742.3,2741.7,1.55020378]
[1645323919020,0.00325089,2742.1,2741.7,1.55020378]
[1645323919918,1.87198938,2742.3,2741.7,1.55020378]
[1645323920121,0.00325093,2742.0,2741.7,1.55020378]
[1645323920518,3.70325093,2742.0,2741.7,1.55020378]
[1645323921119,3.7,2742.0,2741.7,1.55020378]
[1645323921321,1.0,2741.9,2741.7,1.55020378]
[1645323921524,1.0,2741.9,2741.5,0.76329579]
[1645323921719,1.0,2741.9,2741.6,1.55022176]
[1645323922164,4.61593089,2742.0,2741.6,1.55022176]
[1645323922366,4.61268,2742.0,2741.6,1.55022176]
[1645323922664,4.61593517,2742.0,2741.6,1.55022176]
[1645323923663,4.61268,2742.0,2741.6,1.55022176]
[1645323923864,4.61593521,2742.0,2741.6,1.55022176]
[1645323924267,4.46593521,2742.0,2741.6,1.55022176]
[1645323924764,4.46268,2742.0,2741.6,1.55022176]
[1645323924966,4.46593521,2742.0,2741.6,1.55022176]
[1645323925929,4.46268,2742.0,2741.6,1.55022176]
[1645323926324,4.46593478,2742.0,2741.6,1.55022176]
[1645323926524,3.55325478,2742.0,2741.6,1.55022176]
[1645323926926,0.26213463,2741.9,2741.6,1.55022176]
[1645323933819,1.26213463,2741.9,2741.6,1.55022176]
[1645323934424,1.26213463,2741.9,2741.7,1.55023549]
[1645323934623,1.26213463,2741.9,2741.5,1.68863785]
[1645323934819,1.26213463,2741.9,2741.6,1.55023253]
[1645323938668,0.26213463,2741.9,2741.6,1.55023253]
[1645323949129,0.26213463,2741.9,2741.6,1.54915187]
[1645323964925,3.5530786,2742.0,2741.9,0.52426925]
[1645323965529,3.55,2742.0,2741.9,0.52426925]
[1645323969173,3.55,2742.0,2741.9,2.07427286]
[1645323971324,3.55,2742.0,2741.9,1.97427286]
[1645323984876,1.89676316,2742.0,2741.9,1.97427286]
[1645323991578,1.89676316,2742.0,2741.9,1.97418294]
[1645324004970,0.24356585,2742.0,2741.9,1.97418294]
[1645324023428,0.2308684,2742.0,2741.9,1.97418294]
[1645324024928,1.00610468,2742.6,2742.5,1.01866758]
[1645324025228,3.1005,2742.7,2742.5,1.01866758]
[1645324025428,3.1005,2742.7,2742.6,1.54991369]
[1645324025627,1.0,2743.0,2742.6,1.54991369]
[1645324025832,0.00610468,2742.9,2742.6,1.54991369]
[1645324026026,1.15210168,2743.2,2742.6,1.54991369]
[1645324026230,0.00610468,2743.2,2742.6,1.54991369]
[1645324026428,0.00610468,2743.3,2742.6,1.54991369]
[1645324029578,0.00348246,2743.1,2742.6,1.54991369]
[1645324030379,0.00610468,2743.3,2742.6,1.54991369]
[1645324030821,0.0034825,2743.0,2742.6,1.54991369]
[1645324031629,0.00610468,2743.3,2742.6,1.54991369]
[1645324032928,1.00610468,2743.3,2742.6,1.54991369]
[1645324033533,3.8,2743.2,2742.6,1.54991369]
[1645324033732,0.91257,2742.9,2742.2,0.45867288]
[1645324033929,4.03110468,2742.8,2742.3,1.5499101]
[1645324034128,7.29954323,2742.8,2742.3,1.5499101]
[1645324034329,1.0,2742.7,2742.3,1.5499101]
[1645324034583,1.0,2742.7,2742.2,0.45867288]
[1645324034584,0.91262,2742.5,2742.2,0.45867288]
[1645324034784,0.91256,2742.4,2742.2,0.45867288]
[1645324035184,0.91256,2742.4,2742.3,1.54991184]
[1645324035483,0.91603969,2742.4,2742.3,1.54991184]
[1645324036283,0.91603969,2742.4,2742.2,0.45867288]
[1645324036484,0.91256,2742.4,2742.2,0.45867288]
[1645324036885,0.91256,2742.4,2742.3,1.54987951]
[1645324037085,1.91256,2742.4,2742.3,1.54987951]
[1645324037286,0.00347967,2742.5,2742.3,1.54987951]
[1645324037685,1.00610468,2742.6,2742.3,1.54987951]
[1645324037884,0.00610468,2742.6,2742.3,1.54987951]
[1645324038085,0.00347965,2742.5,2742.3,1.54987951]
[1645324038929,1.00610468,2742.9,2742.3,1.54987951]
[1645324039127,0.00347965,2742.5,2742.3,1.54987951]
[1645324040126,0.91245,2742.7,2742.3,1.54987951]
[1645324040331,0.00347965,2742.5,2742.3,1.54987951]
[1645324041332,0.00610468,2742.8,2742.3,1.54987951]
[1645324041729,0.00347965,2742.5,2742.3,1.54987951]
[1645324042579,0.00610468,2742.8,2742.3,1.54987951]
[1645324042781,0.00347965,2742.5,2742.3,1.54987951]
[1645324043780,1.00610468,2742.7,2742.3,1.54987951]
[1645324043986,0.00347965,2742.5,2742.3,1.54987951]
[1645324044881,1.00610468,2742.7,2742.3,1.54987951]
[1645324044882,0.91251,2742.6,2742.3,1.54987951]
[1645324045082,3.7,2742.5,2742.3,1.54987951]
[1645324045381,3.70347965,2742.5,2742.3,1.54987951]
[1645324045581,1.0,2742.4,2742.2,0.45867288]
[1645324045854,1.91258,2742.4,2742.2,0.45867288]
[1645324046547,5.41580676,2742.4,2742.2,0.45867288]
[1645324046746,4.41258,2742.3,2742.2,0.4572128]
[1645324047146,5.41258,2742.3,2742.2,0.4572128]
[1645324048248,5.93758,2742.3,2742.2,0.4572128]
[1645324049345,1.525,2742.3,2742.2,0.4572128]
[1645324049775,0.525,2742.3,2742.2,0.4572128]
[1645324050177,1.00347971,2742.4,2742.2,0.4572128]
[1645324050977,1.0,2742.4,2742.2,0.4572128]
[1645324051178,1.00336225,2742.4,2742.2,0.4572128]
[1645324052181,1.0,2742.4,2742.2,0.4572128]
[1645324052379,1.00336225,2742.4,2742.2,0.4572128]
[1645324053328,1.0,2742.4,2742.2,0.4572128]
[1645324053526,1.00336225,2742.4,2742.2,0.4572128]
[1645324054528,1.0,2742.4,2742.2,0.4572128]
[1645324054728,1.00329114,2742.4,2742.2,0.4572128]
[1645324055729,1.0,2742.4,2742.2,0.4572128]
[1645324055927,1.00329114,2742.4,2742.2,0.4572128]
[1645324056934,1.0,2742.4,2742.2,0.4572128]
[1645324057176,1.00329114,2742.4,2742.2,0.4572128]
[1645324058178,1.0,2742.4,2742.2,0.4572128]
[1645324058380,1.00329168,2742.4,2742.2,0.4572128]
[1645324059384,1.0,2742.4,2742.2,0.4572128]
[1645324059583,1.00329168,2742.4,2742.2,0.4572128]
[1645324060579,1.0,2742.4,2742.2,0.4572128]
[1645324060822,1.00329168,2742.4,2742.2,0.4572128]
[1645324061724,1.0,2742.4,2742.2,0.4572128]
[1645324062128,1.0032916,2742.4,2742.2,0.4572128]
[1645324062329,1.3032916,2742.4,2742.2,0.4572128]
[1645324062529,0.3,2742.3,2742.2,0.4572128]
[1645324063929,1.21258,2742.3,2742.2,0.4572128]
[1645324065177,4.71258,2742.3,2742.2,0.4572128]
[1645324065481,5.71258,2742.3,2742.2,0.4572128]
[1645324066578,6.23758,2742.3,2742.2,0.4572128]
[1645324067184,6.23758,2742.3,2742.2,0.45566682]
[1645324067382,2.7382,2742.1,2741.5,0.00301516]
[1645324067583,4.025,2742.0,2741.5,0.00301516]
[1645324067783,4.8567,2742.0,2741.3,1.55020712]
[1645324067981,1.0,2741.9,2741.5,0.00301516]
[1645324068179,1.3,2741.9,2741.5,0.00301516]
[1645324068430,3.5,2741.8,2741.5,0.00301516]
[1645324068633,2.35079,2741.7,2741.5,1.516e-05]
[1645324068830,2.35079,2741.7,2741.2,0.0120621]
[1645324068831,4.41305,2741.6,2741.2,0.0120621]
[1645324069035,4.41305,2741.6,2740.5,0.00385136]
[1645324069036,0.825,2741.5,2740.5,0.00385136]
[1645324069230,0.825,2741.5,2740.5,1.5543936]
[1645324069231,1.20829,2741.2,2740.5,1.5543936]
[1645324069431,3.5,2741.1,2740.6,0.00385136]
[1645324069633,4.4131463,2741.1,2740.6,0.00385136]
[1645324069835,0.91312,2740.9,2740.6,0.00385136]
[1645324070029,1.2962,2741.0,2740.9,0.74087776]
[1645324070432,0.2962,2741.0,2740.9,2.29149029]
[1645324070630,1.0,2741.1,2740.9,2.29149029]
[1645324070831,0.91305,2741.0,2740.9,0.74087776]
[1645324071030,0.91305,2741.0,2740.9,0.74472912]
[1645324071230,0.91305,2741.0,2740.9,0.74087776]
[1645324074887,4.41305,2741.0,2740.9,0.74087776]
[1645324075092,4.93805,2741.0,2740.9,0.74087776]
[1645324075289,5.93805,2741.0,2740.9,0.74087776]
[1645324075934,2.43805,2741.0,2740.9,0.74087776]
[1645324076330,1.43805,2741.0,2740.9,0.74087776]
[1645324080187,5.13805,2741.0,2740.9,0.74087776]
[1645324080390,6.13805,2741.0,2740.9,0.74087776]
[1645324085936,11.4843,2740.8,2740.3,0.00385136]
[1645324086138,11.4843,2740.8,2739.1,3.34917186]
[1645324086139,6.568,2740.4,2740.1,0.00385136]
[1645324086336,6.568,2740.4,2739.3,0.00385136]
[1645324086337,1.525,2740.3,2739.3,0.00385136]
[1645324086535,1.525,2740.3,2738.9,5.9087]
[1645324086536,4.49408357,2740.3,2739.0,1.55514166]
[1645324086734,2.47887794,2740.3,2739.1,0.00385136]
[1645324086937,2.96908357,2740.2,2739.1,0.00385136]
[1645324087182,0.91363,2739.9,2739.1,0.00385136]
[1645324087382,5.525,2739.8,2739.1,0.00385136]
[1645324087582,6.568,2739.7,2738.9,0.00385136]
[1645324087782,1.525,2739.6,2738.7,1.55535849]
[1645324087982,1.525,2739.6,2738.8,1.55535849]
[1645324088186,3.5,2739.5,2738.9,2.59903421]
[1645324088385,2.125,2739.6,2739.0,0.00733568]
[1645324088386,0.91369,2739.3,2739.0,0.00733568]
[1645324088584,0.525,2739.2,2739.0,0.00733568]
[1645324089184,0.525,2739.2,2739.0,0.00348432]
[1645324089384,0.525,2739.2,2738.7,1.55143451]
[1645324089586,0.525,2739.2,2739.0,0.00348434]
[1645324089886,1.0,2739.4,2739.0,0.00348434]
[1645324090084,0.525,2739.5,2739.4,0.65485866]
[1645324090934,3.04514134,2739.2,2739.0,0.00385136]
[1645324091131,3.04514134,2739.2,2739.0,1.5552819]
[1645324092030,3.04514134,2739.2,2739.0,1.55876624]
[1645324092233,3.04514134,2739.2,2739.0,0.0073357]
[1645324093031,3.04514134,2739.2,2739.0,0.00385136]
[1645324093238,3.04514134,2739.2,2739.0,1.55874369]
[1645324093634,3.04514134,2739.2,2739.0,0.0073357]
[1645324094235,3.04514134,2739.2,2739.0,0.00385136]
[1645324094436,0.525,2739.1,2739.0,0.00348434]
[1645324094684,1.525,2739.1,2739.0,0.00348434]
[1645324095486,1.525,2739.1,2738.7,1.5515368]
[1645324095487,2.43874,2739.1,2738.7,1.5515368]
[1645324095688,2.43874,2739.1,2738.9,0.00348436]
[1645324095896,1.525,2739.1,2738.9,0.00348436]
[1645324096086,1.525,2739.1,2738.9,1.55502116]
[1645324096288,0.525,2739.1,2739.0,1.5515368]
[1645324096585,0.525,2739.1,2738.7,1.5515368]
[1645324096786,0.525,2739.1,2738.9,0.00321136]
[1645324097186,0.525,2739.1,2738.9,1.55474816]
[1645324097387,0.525,2739.1,2739.0,1.5515368]
[1645324097587,2.4387,2739.1,2738.9,0.00706272]
[1645324097787,2.4387,2739.1,2739.0,1.5515368]
[1645324097987,2.4387,2739.1,2738.9,0.00321136]
[1645324098635,1.525,2739.1,2738.9,1.55474816]
[1645324098840,1.525,2739.1,2738.9,0.00321136]
[1645324099135,1.0,2739.1,2738.7,1.55149414]
[1645324099337,3.04514134,2739.2,2738.9,0.00321142]
[1645324099734,3.04514134,2739.2,2738.9,1.55470556]
[1645324100136,3.04514134,2739.2,2738.9,1.55149414]
[1645324100338,3.04514134,2739.2,2739.0,1.55149414]
[1645324100539,3.04514134,2739.2,2738.9,0.00294774]
[1645324101336,3.04514134,2739.2,2738.9,1.55444255]
[1645324101538,3.04514134,2739.2,2739.0,1.55149481]
[1645324101736,3.04514134,2739.2,2738.9,0.00294774]
[1645324102583,3.95880134,2739.2,2738.9,1.55147804]
[1645324102782,3.95880134,2739.2,2739.0,1.55147804]
[1645324103284,3.95880134,2739.2,2738.9,0.00294774]
[1645324103785,3.95880134,2739.2,2738.8,0.00385136]
[1645324103984,3.95880134,2739.2,2738.9,0.00298629]
[1645324104185,3.95880134,2739.2,2738.9,1.55447147]
[1645324104483,3.95880134,2739.2,2739.0,1.55148518]
[1645324104887,3.95880134,2739.2,2739.1,1.55148518]
[1645324105286,3.95880134,2739.2,2738.6,0.00385136]
[1645324105287,4.95880134,2739.2,2739.0,0.00298624]
[1645324105828,4.95739194,2739.2,2739.0,0.00298624]
[1645324106234,4.95739194,2739.2,2738.9,0.00385136]
[1645324106430,4.95739194,2739.2,2739.0,0.00298624]
[1645324107330,4.95739194,2739.2,2738.9,1.55148518]
[1645324107531,4.95739194,2739.2,2739.0,1.55148518]
[1645324107730,4.95739194,2739.2,2739.1,1.55148518]
[1645324107929,4.95739194,2739.2,2739.0,0.0029806]
[1645324108535,4.95739194,2739.2,2738.9,1.55148518]
[1645324108732,0.91369,2739.1,2739.0,1.55148518]
[1645324108929,0.91369,2739.1,2739.0,0.0029806]
[1645324109786,0.91369,2739.1,2738.9,0.00385136]
[1645324110089,4.2161444,2739.2,2738.9,0.00298066]
[1645324110385,4.2161444,2739.2,2738.9,1.5583172]
[1645324110584,4.2161444,2739.2,2739.0,1.55148518]
[1645324110786,4.2161444,2739.2,2739.1,1.55148518]
[1645324111190,4.2161444,2739.2,2738.6,2.24299749]
[1645324111390,4.2161444,2739.2,2739.0,0.00298143]
[1645324112290,4.2161444,2739.2,2738.9,1.55148518]
[1645324112488,4.2161444,2739.2,2739.0,1.55446661]
[1645324112686,4.2161444,2739.2,2739.1,1.55148518]
[1645324113088,4.2161444,2739.2,2739.0,0.00298143]
[1645324113328,4.2161444,2739.2,2738.9,1.55148518]
[1645324113530,4.2161444,2739.2,2739.0,1.55148518]
[1645324113735,4.2161444,2739.2,2739.1,1.55148518]
[1645324114429,4.2161444,2739.2,2739.0,0.00298143]
[1645324114630,4.2161444,2739.2,2738.9,1.55148518]
[1645324114932,4.2161444,2739.2,2739.0,1.55446643]
[1645324115131,4.2161444,2739.2,2739.1,1.55148518]
[1645324115429,4.2161444,2739.2,2739.0,0.00298125]
[1645324115831,4.2161444,2739.2,2738.9,1.55148518]
[1645324116031,4.2161444,2739.2,2739.0,1.55446648]
[1645324116236,4.2161444,2739.2,2739.1,1.55148518]
[1645324116431,4.2161444,2739.2,2739.0,0.0029813]
[1645324117081,4.2161444,2739.2,2738.9,1.55148518]
[1645324117284,4.2161444,2739.2,2739.0,1.55446648]
[1645324117482,4.2161444,2739.2,2739.1,1.55148518]
[1645324117681,4.2161444,2739.2,2739.0,0.0029813]
[1645324118283,4.2161444,2739.2,2739.0,1.55148518]
[1645324118487,4.2161444,2739.2,2739.1,1.55148518]
[1645324119183,4.2161444,2739.2,2739.0,0.00298132]
[1645324119385,4.2161444,2739.2,2738.8,1.55533654]
[1645324119684,0.91369,2739.1,2739.0,0.00298127]
[1645324120084,0.91369,2739.1,2739.0,1.55446645]
[1645324120283,0.91369,2739.1,2739.0,0.00298127]
[1645324120684,0.91369,2739.1,2738.9,1.55148518]
[1645324120932,0.91369,2739.1,2739.0,1.55148518]
[1645324122030,0.91369,2739.1,2738.9,0.00298138]
[1645324122528,1.46872832,2739.1,2738.9,0.00298138]
[1645324122730,1.46872832,2739.1,2738.9,1.55446656]
[1645324122931,1.46872832,2739.1,2738.6,0.00385136]
[1645324123130,1.46872832,2739.1,2738.6,1.55546171]
[1645324123333,1.46872832,2739.1,2738.9,0.00298143]
[1645324123531,0.525,2739.0,2738.9,0.00298143]
[1645324123930,0.525,2739.0,2738.9,1.55459178]
[1645324124134,0.525,2739.0,2738.9,0.00298143]
[1645324124330,0.91375,2738.9,2738.7,0.00385136]
[1645324124586,0.525,2739.0,2738.8,0.00298148]
[1645324124783,1.525,2739.0,2738.8,1.55459183]
[1645324124984,0.525,2739.0,2738.8,1.55459183]
[1645324125184,1.525,2739.0,2738.8,1.55459183]
[1645324125385,1.525,2739.0,2738.8,1.55161035]
[1645324125782,1.525,2739.0,2738.8,1.55459189]
[1645324126185,1.525,2739.0,2738.8,0.00298154]
[1645324126583,1.525,2739.0,2738.7,1.04445233]
[1645324126787,1.525,2739.0,2738.8,0.00298154]
[1645324126983,1.55503832,2739.1,2738.8,0.00298154]
[1645324127184,1.0,2739.0,2738.8,1.55457872]
[1645324127383,1.55503832,2739.1,2738.8,1.55457872]
[1645324127784,1.55503832,2739.1,2738.8,1.55159718]
[1645324128184,1.55503832,2739.1,2738.8,1.55457866]
[1645324128836,2.46870832,2739.1,2738.8,1.55457866]
[1645324129038,2.46870832,2739.1,2738.8,1.55159718]
[1645324129232,2.46870832,2739.1,2738.8,1.55457866]
[1645324129833,2.46870832,2739.1,2738.9,1.55159718]
[1645324130035,4.29633832,2739.1,2739.0,1.55159718]
[1645324130234,4.29633832,2739.1,2738.9,1.55159718]
[1645324130435,1.82763,2739.0,2738.9,0.00298143]
[1645324130834,2.82763,2739.0,2738.9,0.00298143]
[1645324131434,3.35263,2739.0,2738.8,1.55167979]
[1645324131634,3.35263,2739.0,2738.9,1.55167979]
[1645324131834,3.35263,2739.0,2738.9,1.55049943]
[1645324132087,3.35263,2739.0,2738.8,0.00298148]
[1645324132484,4.26644,2739.0,2738.8,0.00298148]
[1645324132685,4.26644,2739.0,2738.4,0.00385136]
[1645324132883,0.9138,2738.8,2738.4,0.0157793]
[1645324133785,0.9138,2738.8,2738.4,0.00385136]
[1645324134087,0.9138,2738.8,2738.5,0.00298186]
[1645324134691,0.91383,2738.7,2738.5,0.00298186]
[1645324135085,0.91383,2738.7,2738.4,0.00385136]
[1645324135286,0.91383,2738.7,2738.5,0.00298186]
[1645324136329,0.91383,2738.7,2738.4,0.00385136]
[1645324136536,0.91383,2738.7,2738.5,0.00298186]
[1645324137335,0.91383,2738.7,2738.4,0.00385136]
[1645324137731,0.91383,2738.7,2738.5,0.00298186]
[1645324138533,0.91383,2738.7,2738.4,0.00385136]
[1645324138734,0.91383,2738.7,2738.5,0.00298186]
[1645324139134,0.9138,2738.8,2738.7,0.74129603]
[1645324146246,0.525,2739.0,2738.7,0.74129603]
[1645324146646,1.46871832,2739.1,2738.7,0.74129603]
[1645324146845,0.55503832,2739.1,2738.7,0.74514739]
[1645324147101,2.3024844,2739.2,2738.8,3.5]
[1645324147302,2.3024844,2739.2,2738.8,3.5068329]
[1645324148198,2.3024844,2739.2,2738.8,3.50385136]
[1645324148397,2.3024844,2739.2,2738.9,0.00298143]
[1645324149400,2.3024844,2739.2,2738.8,3.50385136]
[1645324149801,2.3024844,2739.2,2738.8,0.00385136]
[1645324150940,2.3024844,2739.2,2738.9,0.00300643]
[1645324151936,2.3024844,2739.2,2738.9,1.55153735]
[1645324152139,2.3024844,2739.2,2739.0,1.55153735]
[1645324152537,2.3024844,2739.2,2739.1,1.55153735]
[1645324152943,2.3024844,2739.2,2738.9,1.55153735]
[1645324153141,2.3024844,2739.2,2739.0,1.55153735]
[1645324153339,2.3024844,2739.2,2739.1,1.55153735]
[1645324153741,2.3024844,2739.2,2739.0,0.00300626]
[1645324154240,2.3024844,2739.2,2738.9,1.55153735]
[1645324154444,2.3024844,2739.2,2739.0,0.00299708]
[1645324156585,2.3024844,2739.2,2738.9,1.55153735]
[1645324156787,2.3024844,2739.2,2738.8,0.00385136]
[1645324156788,2.3024844,2739.2,2739.0,1.55153735]
[1645324156987,2.3024844,2739.2,2739.0,1.55453443]
[1645324157385,2.3024844,2739.2,2739.1,1.55153735]
[1645324157585,2.3024844,2739.2,2739.0,0.00299708]
[1645324157784,2.3024844,2739.2,2738.9,1.55153735]
[1645324157985,2.3024844,2739.2,2739.0,1.55453588]
[1645324158189,2.3024844,2739.2,2739.1,1.55153735]
[1645324158431,2.2524844,2739.2,2739.1,1.55153735]
[1645324158631,2.2524844,2739.2,2739.0,0.00299853]
[1645324159034,2.2524844,2739.2,2738.9,1.55153735]
[1645324159237,2.2524844,2739.2,2739.0,1.55453593]
[1645324159435,2.2524844,2739.2,2739.1,1.55153735]
[1645324159634,2.2524844,2739.2,2739.0,0.00299858]
[1645324159834,3.1661244,2739.2,2739.0,0.00299858]
[1645324160334,3.1661244,2739.2,2738.9,1.55153735]
[1645324160534,3.1661244,2739.2,2739.0,1.55453593]
[1645324160741,3.1661244,2739.2,2739.1,1.55153735]
[1645324160936,3.16452654,2739.2,2739.0,0.00299858]
[1645324161438,3.16452654,2739.2,2738.9,1.55153735]
[1645324161638,2.25088654,2739.2,2739.0,1.55453569]
[1645324161838,2.25088654,2739.2,2739.1,1.55153735]
[1645324162088,2.25088654,2739.2,2739.0,0.00299834]
[1645324162288,2.25088654,2739.2,2739.0,1.55453569]
[1645324162486,2.25088654,2739.2,2739.0,0.00299834]
[1645324162687,2.25088654,2739.2,2738.9,1.55153735]
[1645324162887,2.25088654,2739.2,2739.0,1.55453569]
[1645324163104,2.25088654,2739.2,2739.1,1.55153735]
[1645324163690,2.25088654,2739.2,2739.0,0.00299834]
[1645324163989,2.25088654,2739.2,2739.0,0.00299829]
[1645324164193,0.95397769,2740.0,2739.1,14.5]
[1645324164389,4.1174,2740.2,2739.9,1.14831489]
[1645324164588,3.1928,2740.5,2739.9,1.14831489]
[1645324164892,0.95376582,2740.5,2740.0,1.55120982]
[1645324165292,0.95376582,2740.5,2740.1,0.00299718]
[1645324165688,0.91333,2740.4,2740.1,0.00299718]
[1645324165941,0.3,2740.3,2740.1,0.00299718]
[1645324166435,0.3,2740.3,2739.9,1.14831489]
[1645324166637,0.3,2740.3,2740.1,0.00299718]
[1645324167437,0.3,2740.3,2739.9,1.14831489]
[1645324167841,0.3,2740.3,2740.1,0.00299718]
[1645324168636,0.3,2740.3,2739.9,1.14831489]
[1645324169036,0.3,2740.3,2740.1,0.00299715]
[1645324169883,0.3,2740.3,2739.9,1.14831489]
[1645324170087,0.3,2740.3,2740.1,0.00299715]
[1645324170989,0.3,2740.3,2739.9,1.14831489]
[1645324171390,0.3,2740.3,2740.1,0.00299715]
[1645324172388,4.0,2740.3,2739.9,1.14831489]
[1645324172588,4.0,2740.3,2740.1,0.00299715]
[1645324172788,1.0,2740.2,2740.1,0.00299715]
[1645324173436,1.0,2740.2,2739.9,1.14831489]
[1645324173641,1.0,2740.2,2740.0,0.00299721]
[1645324174436,0.91334,2740.1,2740.0,0.00299721]
[1645324174637,0.91334,2740.1,2739.9,1.14831489]
[1645324174840,1.0,2740.2,2740.0,0.00299726]
[1645324175341,4.0,2740.3,2740.0,3.50299726]
[1645324175342,3.7,2740.3,2740.0,3.50299726]
[1645324175541,3.7,2740.3,2740.1,1.55108042]
[1645324175740,3.7,2740.3,2740.0,3.50299726]
[1645324175944,3.7,2740.3,2740.1,1.5510125]
[1645324176144,3.7,2740.3,2740.1,1.55400965]
[1645324176940,3.7,2740.3,2740.1,0.00299715]
[1645324177190,3.7,2740.3,2740.1,1.55103938]
[1645324177390,3.7,2740.3,2740.1,1.55403653]
[1645324177989,3.7,2740.3,2740.1,0.00299715]
[1645324178189,3.7,2740.3,2740.0,1.5510249]
[1645324178591,3.7,2740.3,2740.1,0.00299715]
[1645324179289,3.7,2740.3,2740.1,1.55402205]
[1645324179489,3.7,2740.3,2740.1,1.5510249]
[1645324179691,3.7,2740.3,2740.1,0.00299715]
[1645324180290,1.0,2740.2,2740.1,0.00299715]
[1645324180690,1.0,2740.2,2739.7,1.55117488]
[1645324180940,1.0,2740.2,2740.0,0.00299721]
[1645324180941,0.91336,2740.1,2740.0,0.00299721]
[1645324181936,1.82674,2740.1,2739.7,1.17975052]
[1645324182235,1.82674,2740.1,2739.9,0.00299732]
[1645324182436,1.0,2740.2,2739.9,0.00299732]
[1645324183036,1.0,2740.2,2739.8,1.55118262]
[1645324183237,3.7,2740.3,2739.9,0.00299732]
[1645324184041,3.7,2740.3,2739.9,1.55417994]
[1645324184238,3.7,2740.3,2739.8,3.5]
[1645324184437,3.7,2740.3,2739.9,1.55108451]
[1645324184688,3.7,2740.3,2740.0,0.00299727]
[1645324185587,3.7,2740.3,2739.9,1.55108451]
[1645324185788,3.7,2740.3,2740.0,1.55408172]
[1645324185990,3.7,2740.3,2740.0,0.00299721]
[1645324186592,3.7,2740.3,2739.9,1.55107806]
[1645324187588,3.7,2740.3,2740.0,1.55107806]
[1645324187790,3.7,2740.3,2739.7,1.17975052]
[1645324187989,3.7,2740.3,2739.8,1.55107113]
[1645324189637,3.7,2740.3,2739.8,5.05107113]
[1645324189941,3.7,2740.3,2739.9,1.55107113]
[1645324190137,3.7,2740.3,2740.0,1.55107113]
[1645324190338,3.7,2740.3,2740.1,1.55107113]
[1645324190543,3.7,2740.3,2739.9,0.00348289]
[1645324190949,3.7,2740.3,2739.9,1.55455659]